Cogmind - Beta 13 @@@ ROGUE MODE // 2024.04.04 @ 14:18:25 Player: Jennifer Result: Self-destructed Performance ------------- Evolutions (0) 0 Regions Visited (4) 800 Robots Destroyed (19) 95 Value Destroyed (516) 516 Prototype IDs (23) 460 Alien Tech Used (0) 0 Bonus (300) 300 TOTAL SCORE: 2171 Bonus ------- Aligned with FarCom 300 Cogmind --------- Core Integrity 108/250 Matter 236/300 Energy 250/250 System Corruption 8% Temperature Cool (0) Movement Walking (190) Ox1 Location -9/Mines Parts ------- > --- POWER (1) -------- Ion Engine > --- PROPULSION (2) --- Aluminum Leg > --- UTILITY (2) ------ Small Storage Unit > --- WEAPON (2) ------- Assault Rifle Rocket Launcher > --- INVENTORY (8) ---- Light Nuclear Core Light Nuclear Core Aluminum Leg Aluminum Leg Large Storage Unit Propulsion Shielding YOLO Cannon Peak State ------------ > --- POWER ------------ Ion Engine > --- PROPULSION ------- Aluminum Leg Aluminum Leg > --- UTILITY ---------- Small Storage Unit Hacking Suite > --- WEAPON ----------- YOLO Cannon > --- INVENTORY -------- Light Nuclear Core Light Nuclear Core Aluminum Leg Aluminum Leg Large Storage Unit Propulsion Shielding [Rating: 28] Favorites ----------- Power Light Ion Engine Engine Light Ion Engine Propulsion Aluminum Leg Treads Light Treads Leg Aluminum Leg Utility Small Storage Unit Storage Small Storage Unit Hackware Hacking Suite Weapon Assault Rifle Energy Gun Small Laser Energy Cannon YOLO Cannon Ballistic Gun Assault Rifle Launcher Rocket Launcher Build | -11 -10 -10 -10 -9 ------- Run | Yrd Mat Min Exi Min Slots Evolved . | . . . . . Power . | . . . . . Propulsion . | . . . . . Utility . | . . . . . Weapon . | . . . . . Parts Attached 22 | 7 9 2 4 . Power 2 | 1 . 1 . . Engine 2 | 1 . 1 . . Core . | . . . . . Reactor . | . . . . . Propulsion 6 | 2 4 . . . Treads 4 | 2 2 . . . Leg 2 | . 2 . . . Wheel . | . . . . . Hover . | . . . . . Flight . | . . . . . Utility 4 | 1 3 . . . Device . | . . . . . Storage 3 | 1 2 . . . Processor . | . . . . . Hackware 1 | . 1 . . . Protection . | . . . . . Artifact . | . . . . . Weapon 10 | 3 2 1 4 . Energy Gun 1 | 1 . . . . Energy Cannon 1 | . . . 1 . Ballistic Gun 6 | 2 2 . 2 . Ballistic Cannon . | . . . . . Launcher 2 | . . 1 1 . Special Weapon . | . . . . . Impact Weapon . | . . . . . Slashing Weapon . | . . . . . Piercing Weapon . | . . . . . Special Melee Weapon . | . . . . . Unidentified Prototypes . | . . . . . Parts Lost 6 | . 3 1 . 2 Power 1 | . . 1 . . Propulsion 3 | . 2 . . 1 Utility 1 | . . . . 1 Weapon 1 | . 1 . . . Highest Loss Streak 3 | . 3 1 . 2 To Critical Strikes . | . . . . . Average Slot Usage (%) 92 | . 88 100 89 100 Engine 14 | . 14 14 14 14 Treads 6 | . 12 . . . Leg 20 | . 13 28 28 28 Storage 14 | . 14 14 14 14 Hackware 9 | . 5 14 14 14 Energy Cannon 2 | . . . 9 . Ballistic Gun 20 | . 27 26 4 14 Launcher 2 | . . 1 4 14 Naked Turns . | . . . . . Heaviest Build 28 | 12 27 16 28 16 Greatest Support 40 | 40 40 20 20 20 Greatest Overweight (x) 8 | . 8 . 1 . Average Overweight (x) . | . . . . . Largest Inventory Capacity 15 | 8 15 8 8 8 Average Capacity 9 | 6 10 8 8 8 Most Carried 8 | 1 8 8 8 8 Average Carried 6 | . 4 7 7 8 Final Capacity 8 | 8 8 8 8 8 Final Carried 8 | 1 8 8 8 8 Class Distribution -------------------- 67% | Mutant 32% | Scavenger-Mutant Dominant Class ---------------- Mutant | -10/Materials Scavenger-Mutant | -10/Mines Mutant | -10/Exiles Mutant | -9/Mines Resources | -11 -10 -10 -10 -9 ----------- Run | Yrd Mat Min Exi Min Matter Collected 639 | 222 370 47 . . Remotely . | . . . . . Salvage Created 722 | . 622 94 . 6 Parts 45 | . 41 4 . . Haulers Intercepted . | . . . . . Recyclers Shooed 1 | . 1 . . . Parts Field Recycled . | . . . . . Retrieved Matter . | . . . . . Parts Self-Destructed . | . . . . . Prevented . | . . . . . Kills | -11 -10 -10 -10 -9 ------- Run | Yrd Mat Min Exi Min Combat Hostiles Destroyed 16 | . 13 2 . 1 Guns 15 | . 13 2 . . AOE 1 | . . . . 1 Classes Destroyed 7 | . 6 . . 1 Worker 1 | . 1 . . . Recycler 1 | . 1 . . . Operator 1 | . 1 . . . Watcher 1 | . 1 . . . Swarmer 3 | . 3 . . . Grunt 12 | . 10 2 . . Assembled 1 | . . . . 1 Best Kill Streak 3 | . 3 2 . 1 Combat Bots Only 3 | . 3 2 . 1 Max Kills in Single Turn 1 | . 1 1 . 1 Gunslinging . | . . . . . Exploded 1 | . . . . 1 Melee . | . . . . . Uniques/NPCs Destroyed . | . . . . . Combat | -11 -10 -10 -10 -9 -------- Run | Yrd Mat Min Exi Min Hostile Shots Fired 82 | . 67 10 . 5 Missed 21 | . 20 . . 1 Damage Taken 804 | . 568 131 . 105 Core 142 | . 80 62 . . Absorbed by Shields . | . . . . . Core Remaining (%) 100 | 100 . . . . Volleys Fired 60 | . 46 9 . 5 Largest 2 | . 2 2 . 2 Hottest 53 | . 40 40 . 53 Shots Fired 115 | . 91 18 . 6 Gun 114 | . 91 18 . 5 Cannon . | . . . . . Launcher 1 | . . . . 1 Special . | . . . . . Kinetic 114 | . 91 18 . 5 Thermal . | . . . . . Explosive 1 | . . . . 1 Electromagnetic . | . . . . . Robot Hit Streak 15 | . 15 9 . 10 Robot Miss Streak 3 | . 3 2 . 3 Penetration Max . | . . . . . Secondary Targets 1 | . 1 . . . Max Gunslinging Chain 1 | . 1 . . . Shots Hit Robots 71 | . 55 13 . 3 Core Hits 37 | . 29 6 . 2 Critical Kills 1 | . 1 . . . Critical Parts Destroyed 1 | . . 1 . . Critical Strikes 2 | . 1 1 . . Destroy 2 | . 1 1 . . Melee Attacks . | . . . . . Impact . | . . . . . Slashing . | . . . . . Piercing . | . . . . . Sneak Attacks . | . . . . . Combat Hostiles . | . . . . . Follow-up Attacks . | . . . . . Damage Inflicted 914 | . 687 136 . 91 Guns 865 | . 687 136 . 42 Cannons . | . . . . . Explosions 49 | . . . . 49 Melee . | . . . . . Ramming . | . . . . . Kinetic 865 | . 687 136 . 42 Thermal . | . . . . . Explosive 49 | . . . . 49 Electromagnetic . | . . . . . Impact . | . . . . . Slashing . | . . . . . Piercing . | . . . . . Highest Corruption 8 | . . . . 8 Average Corruption 8 | . . . . 8 Corruption Purged . | . . . . . Corruption Blocked . | . . . . . Overload Shots . | . . . . . Overflow Damage . | . . . . . Projectiles . | . . . . . Explosions . | . . . . . Melee . | . . . . . Knockbacks . | . . . . . Impact . | . . . . . Kinetic . | . . . . . Secondary . | . . . . . Self-Inflicted Damage 32 | . . . . 32 Shots 1 | . . . . 1 Rammed . | . . . . . Targets Rammed . | . . . . . Kicked . | . . . . . Crushed . | . . . . . Highest Temperature 31 | . 31 12 . . Average Temperature 13 | . 15 7 . . Received Heat Transfer 387 | . 315 72 . . Siege Activations . | . . . . . Robots Corrupted . | . . . . . Combat Hostiles . | . . . . . Parts Fried . | . . . . . Impact Corruptions . | . . . . . Robots Melted . | . . . . . Combat Hostiles . | . . . . . Parts Melted . | . . . . . Heat Transferred . | . . . . . Parts Sabotaged . | . . . . . Parts Stolen . | . . . . . Parts Stripped . | . . . . . Power Chain Reactions . | . . . . . Alert | -11 -10 -10 -10 -9 ------- Run | Yrd Mat Min Exi Min Peak Influence 208 | . 208 50 . 26 Initial . | . . . . . Average 52 | . 78 14 . 1 Maximum Alert Level 1 | . 1 . . . Low Security (%) 99 | 100 99 100 . 100 Level 1 . | . . . . . Level 2 . | . . . . . Level 3 . | . . . . . Level 4 . | . . . . . Level 5 . | . . . . . High Security . | . . . . . Max Security . | . . . . . Squads Dispatched 4 | . 4 . . . Investigation 2 | . 2 . . . Extermination . | . . . . . Reinforcement 2 | . 2 . . . Assault . | . . . . . Garrison . | . . . . . Intercept . | . . . . . Searches Triggered . | . . . . . Construction Impeded . | . . . . . Haulers Reinforced . | . . . . . Active Scanning Responses . | . . . . . Cargo Convoy Interrupts . | . . . . . Stealth | -11 -10 -10 -10 -9 --------- Run | Yrd Mat Min Exi Min Distress Signals 3 | . 1 . . 2 Communications Jammed . | . . . . . Distress Signals . | . . . . . Times Spotted 33 | . 29 2 . 2 Peak Tracking Total 4 | . 4 2 . 2 Tactical Retreats 2 | . 2 . . . Traps | -11 -10 -10 -10 -9 ------- Run | Yrd Mat Min Exi Min Traps Triggered 3 | . 3 . . . Indirectly . | . . . . . Trap Hack Attempts . | . . . . . Triggered . | . . . . . Disarmed . | . . . . . Reprogrammed . | . . . . . Reused . | . . . . . Traps Extracted . | . . . . . Installed . | . . . . . Triggered . | . . . . . Machines | -11 -10 -10 -10 -9 ---------- Run | Yrd Mat Min Exi Min Machines Disabled . | . . . . . Max in Single Turn . | . . . . . Machines Repaired . | . . . . . Machines Dismantled . | . . . . . Machines Sabotaged . | . . . . . Overloaded Fab Kills . | . . . . . Hacking | -11 -10 -10 -10 -9 --------- Run | Yrd Mat Min Exi Min Machines Accessed 6 | . 4 1 1 . Terminals 5 | . 4 1 . . Fabricators . | . . . . . Repair Stations . | . . . . . Recycling Units . | . . . . . Scanalyzers . | . . . . . Garrison Access . | . . . . . Total Hacks 11 | . 9 1 1 . Successful 5 | . 3 1 1 . Failed 6 | . 6 . . . Catastrophic . | . . . . . Database Lockouts . | . . . . . Manual 12 | . 10 1 1 . Terminals 10 | . 9 1 . . Fabricators . | . . . . . Repair Stations . | . . . . . Recycling Units . | . . . . . Scanalyzers . | . . . . . Garrison Access . | . . . . . Terminal Hacks 5 | . 3 1 1 . Branch Access Points 1 | . 1 . . . Recall Investigation 1 | . 1 . . . Zone Layout 2 | . 1 1 . . Derelict Proto ID Bank 1 | . . . 1 . Fabricator Hacks . | . . . . . Repair Station Hacks . | . . . . . Recycling Unit Hacks . | . . . . . Scanalyzer . | . . . . . Garrison Access Hacks . | . . . . . Unauthorized Hacks . | . . . . . Terminals . | . . . . . Fabricators . | . . . . . Repair Stations . | . . . . . Recycling Units . | . . . . . Scanalyzers . | . . . . . Garrison Access . | . . . . . Data Cores Recovered . | . . . . . Used . | . . . . . Hacking Detections 4 | . 4 . . . Full Trace Events 1 | . 1 . . . Feedback Events . | . . . . . Feedback Blocked . | . . . . . Robot Schematics Acquired . | . . . . . Robots Built . | . . . . . Authchips . | . . . . . Time . | . . . . . Total Robot Build Rating . | . . . . . Part Schematics Acquired . | . . . . . Parts Built . | . . . . . Authchips . | . . . . . Time . | . . . . . Total Part Build Rating . | . . . . . Parts Repaired . | . . . . . Time . | . . . . . Parts Recycled . | . . . . . Recycled Matter . | . . . . . Retrieved Matter . | . . . . . Retrieved Components . | . . . . . Parts Scanalyzed . | . . . . . Part Schematics Acquired . | . . . . . Parts Damaged . | . . . . . Bothacking | -11 -10 -10 -10 -9 ------------ Run | Yrd Mat Min Exi Min Used RIF Installer . | . . . . . Robots Hacked . | . . . . . Non-combat . | . . . . . Combat . | . . . . . Robot Hacks Applied . | . . . . . Relay Couplers Released . | . . . . . Fabnet Peak Effective % . | . . . . . Robots Rewired . | . . . . . Allies Hacked . | . . . . . Hacks Repelled . | . . . . . Allies | -11 -10 -10 -10 -9 -------- Run | Yrd Mat Min Exi Min Total Allies . | . . . . . Largest Group . | . . . . . Highest-Rated Group . | . . . . . Highest-Rated Ally . | . . . . . Total Orders . | . . . . . Ally Attacks . | . . . . . Total Damage . | . . . . . Kills . | . . . . . Allies Corrupted . | . . . . . Allies Melted . | . . . . . Intel | -11 -10 -10 -10 -9 ------- Run | Yrd Mat Min Exi Min Robot Analysis Total . | . . . . . Derelict Logs Recovered 2 | . . 1 . 1 Drone Launches . | . . . . . Drone Recoveries . | . . . . . Exploration | -11 -10 -10 -10 -9 ------------- Run | Yrd Mat Min Exi Min Turns Passed 2572 | 81 1245 422 582 242 Spaces Moved 1638 | 45 725 323 353 192 Core 8 | 2 6 . . . Treads 314 | 43 271 . . . Legs 1316 | . 448 323 353 192 Wheels . | . . . . . Hover . | . . . . . Flight . | . . . . . Fastest Speed 50 | 50 120 120 120 120 Average Speed 139 | 155 140 120 161 120 Slowest Speed 450 | 160 450 120 190 120 Overloaded Moves . | . . . . . Propulsion Burnouts . | . . . . . Robots Hopped . | . . . . . Cave-ins Triggered . | . . . . . Exploration Rate (%) 54 | 4 96 47 85 38 Regions Visited 4 Branch Regions 3 Pre-discovered Areas 3 | . . 2 . 1 Known Exits Taken 1 | . 1 . . . Unknown Exits Taken 3 | 1 . 1 1 . Scrap Searched . | . . . . . Spaces Dug . | . . . . . Terrain Destroyed 14 | . . . . 14 Melee . | . . . . . Projectile . | . . . . . AOE 14 | . . . . 14 Terrain Rammed . | . . . . . Walls Destroyed . | . . . . . Machines Disabled . | . . . . . Actions | -11 -10 -10 -10 -9 --------- Run | Yrd Mat Min Exi Min Total 1815 | 54 857 341 366 197 Wait 70 | . 64 6 . . Move 1634 | 44 724 322 352 192 Hop . | . . . . . Pick Up 17 | 1 11 1 4 . Fast Attach 13 | 7 5 1 . . Attach 7 | . 3 1 3 . Detach 2 | 1 1 . . . Swap 2 | . 1 . 1 . Drop 10 | 1 2 1 6 . Fire 60 | . 46 9 . 5 Melee . | . . . . . Ram . | . . . . . Kick . | . . . . . Crush . | . . . . . Escape Stasis . | . . . . . Rewire . | . . . . . Trap . | . . . . . Miscellaneous . | . . . . . Route ------- -11/Scrapyard -10/Materials (discovered 6 exits: [*Mat x3] / *Min x2 / [*Sub]) -10/Mines (discovered 2 exits: [*Mat] / *Exi) -10/Exiles -9/Mines History --------- Turn | Location | Event 15 | -11/Scrapyard | Discovered new exit (range 15) 82 | -11/Scrapyard | Entered Materials 310 | -10/Materials | Build established: Mutant 321 | -10/Materials | Identified exit to Mines 336 | -10/Materials | Discovered new exit (range 4) 491 | -10/Materials | Discovered new exit (range 13) 697 | -10/Materials | Lost 3 parts (2n1w) 778 | -10/Materials | Discovered new exit (range 15) 1149 | -10/Materials | Build established: Scavenger-Mutant 1304 | -10/Materials | Discovered new exit (range 14) 1327 | -10/Materials | Entered Mines 1349 | -10/Mines | Discovered new exit (range 9) 1420 | -10/Mines | Learned location of Storage (-8) 1493 | -10/Mines | Learned location of Zion (-7) 1565 | -10/Mines | Deemed a non-threat by the Exiles lab entrance 1610 | -10/Mines | Core integrity fell below 50% 1693 | -10/Mines | Received a Rocket Launcher from a helpful Derelict 1744 | -10/Mines | Discovered new exit (range 5) 1749 | -10/Mines | Entered Exiles 1778 | -10/Exiles | Met 8R-AWN 1800 | -10/Exiles | Met EX-HEX 1836 | -10/Exiles | Met EX-BIN 1850 | -10/Exiles | Aligned with FarCom system 1851 | -10/Exiles | Given EX-Vault access code 1881 | -10/Exiles | Opened EX-Vault 1890 | -10/Exiles | Found YOLO Cannon 1938 | -10/Exiles | Warned to stay clear of 0b10 Research branches 1991 | -10/Exiles | Met EX-DEC 1994 | -10/Exiles | Build established: Mutant 2070 | -10/Exiles | Visited The Gauntlet 2311 | -10/Exiles | Discovered new exit (range 14) 2331 | -10/Exiles | Left Exiles lab with YOLO Cannon 2331 | -10/Exiles | Entered Mines 2409 | -9/Mines | Assembled infested the area 2573 | -9/Mines | Self-destructed Last Messages --------------- 02303_ Acquired YOLO Cannon. 02311_ EXIT=FOUND LOCATION=UNKNOWN GOAL=ESCAPE 02331_ Receiving FarCom transmissions... 02332_ T-07 Excavator is excavating. 02407_ A derelict is hurriedly installing traps. 02409_ ALERT: Infestation in the mines, dispatching Demolisher response squad. 02409_ X8-AF9(g): "Hehe, this'll put a wrench in their mining defense operations..." 02409_ X8-AF9(g) slips into the shadows. 02491_ Acquired derelict log, extracted data. World map confirmed: -8/Storage. 02499_ K-01 Serf collects debris. 02562_ as-83593 destroyed. 02571_ Hacking Suite destroyed. 02571_ Aluminum Leg destroyed. 02571_ System corrupted by crushing effect (+3). 02571_ System corrupted by crushing effect (+5). Map ----- +----------------------------------------------------+ | ?????????????????????????????????????????? | | ?????????????????????????????????????????? | | ?????????????????????????????????????????? | | ?????????????????????????????????????????? | | ?????????????????????????????????????????? | | ?????????????????????????????????????????? | | ?????????????????????????????????????????? | | ?????????????????????????????????????????? | | ?????????????????????????????????????????? | | ?????????????????????????????????????????? | | ?????????????????????????????????????????? | | ?????????????????????????????????????????? | | ?????????????????????????????????????????? | | ???????????????#####?????????????????????? | | ?????????????### ##????????????????????? | | ?????######### ##???????????????????? | | ?????# #???????????????????? | | ?????# ###### #???????????????????? | | ?????+ ##????####???????????????????? | | ?????+ ##???????????????????????????? | | ?????# ####????????????????????????? | | ?????# ##???????????????????????? | | ????## ##??????????????????????? | | ???## ##????###??????????????? | | ?### ###### #??????????????? | | ## @#??????????????? | | ###### a #?????????????? | | # ###???# #????????????? | | # ##?????# ##????????????? | | ## #??????## % #?????????????? | | ######???????# [%!?????????????? | | ##???????????## !!?????????????? | | #????????????# ###????????????? | | ## #???????????###??????????????? | | ##### #????????????????????????????? | | #???#####????????????????????????????? | | #????????????????????????????????????? | | ##????????????????????????????????????? | | ##?????????????????????????????????????? | | ##??????????????????????????????????????? | | ##????????????????gg?????????????????????? | | #????????????????g??????????????????????? | | ##???????????????????????????????????????? | | #????????????????????????????????????????? | | ?????????????????????????????????????????? | | ?????????????????????????????????????????? | | ?????????????????????????????????????????? | | ?????????????????????????????????????????? | | ?????????????????????????????????????????? | | ?????????????????????????????????????????? | +----------------------------------------------------+ Best States ------------- Heat Dissipation 25 Energy Generation 10 Energy Capacity 250 Matter Stores 300 Matter Capacity 300 Sight Range 16 Terrain Scan Density 10 Evasion (%) 55 Recoil Reduction 2 Offensive Hacking 10 Item Schematics ----------------- None Robot Schematics ------------------ None Fabricated ------------ Nothing Alien Tech Used ----------------- None Achievements -------------- None Challenges ------------ None Game ------ Seed HeavyTerrainNanoactuators Manual? 0 Play Time 00:19:10 Cumulative 29.2 hours Start 2024.04.04 @ 14:00:47 End 2024.04.04 @ 14:18:25 Sessions 1 Manual Loads 0 Difficulty Rogue Special Mode None Game No. 45 Rogue 45 Adventurer 0 Explorer 0 Win Type - Total 0 Types 0/0/0/0/0/0/0/0/0 Lore% 16 Gallery% 23 Achievement% 22 Wizard Run 0 Options --------- Layout 2 ASCII 0 Keyboard 1 Movement Numpad Keybinds 0 Fullscreen 2 Font 20/Cog Map View 64x51 Zoom Use 5% Tactical HUD 1 Map Filters NONE Filters NONE Steam 1 RUN: 009edb73-8974-408b-901b-399277b2dfb4